{"text_format":"1","workbook":"xlsx","n_sheets":5,"sheets":["MAQUETTE","extraction base OF","liste automatisée mentions","liste automatisée parcours","LISTES"],"not_rendered":{"charts":0,"images":0,"macros":1,"external_links":2,"defined_names":6,"comments":0,"pivot_tables":0},"unopened":[],"bounds":{"document_bytes":16777216,"sheet_cells":100000,"rows_first":2000,"rows_last":500,"rows_between":2000,"halvings":0,"cell_chars":16384,"cell_head_chars":4096},"cells_cut":0,"cells_raw":0,"read":"whole","date_system":"1900"}

{"sheet":"MAQUETTE","index":0,"n_rows":231,"n_cols":35,"rows_kept":231,"cut":false,"hidden":false,"merged":[[7,35,7,39],[39,9,40,9],[39,10,40,10],[39,11,40,11],[39,12,40,12],[6,3,8,3],[6,4,8,4],[6,5,8,5],[6,6,8,6],[6,7,8,7],[6,8,8,8],[7,10,7,15],[7,16,7,20],[39,13,40,13],[39,14,40,14],[4,0,4,15],[44,0,58,34],[65,16,65,34],[66,16,66,34],[67,16,67,28],[67,29,67,34],[68,21,69,21],[5,6,5,8],[5,9,8,9],[5,10,6,15],[6,0,8,0],[6,1,8,1],[6,2,8,2],[65,0,65,15],[5,0,5,2],[5,3,5,5],[39,3,40,3],[39,4,40,4],[39,5,40,5],[39,6,40,6],[39,7,40,7],[39,8,40,8],[66,0,66,2],[39,15,40,15],[39,0,40,0],[56,35,56,39],[100,0,101,0],[100,1,101,1],[100,2,101,2],[100,3,101,3],[100,4,101,4],[100,5,101,5],[100,6,101,6],[100,7,101,7],[100,8,101,8],[100,9,101,9],[100,10,101,10],[100,11,101,11],[100,12,101,12],[100,13,101,13],[100,14,101,14],[100,15,101,15],[67,2,69,2],[68,10,68,15],[68,16,68,20],[67,0,69,0],[67,1,69,1],[68,29,68,33],[68,34,69,34],[39,1,40,1],[39,2,40,2],[117,35,117,39],[126,0,126,15],[128,6,130,6],[128,7,130,7],[128,8,130,8],[129,10,129,15],[129,16,129,20],[68,22,68,26],[68,27,69,27],[68,28,69,28],[67,8,69,8],[67,3,69,3],[67,4,69,4],[67,5,69,5],[67,6,69,6],[67,7,69,7],[66,9,69,9],[66,10,67,15],[66,3,66,5],[66,6,66,8],[68,35,68,39],[105,0,119,34],[242,35,242,39],[181,35,181,39],[225,0,226,0],[225,1,226,1],[225,2,226,2],[225,3,226,3],[225,4,226,4],[225,5,226,5],[225,6,226,6],[225,7,226,7],[225,8,226,8],[225,9,226,9],[225,10,226,10],[225,11,226,11],[225,12,226,12],[225,13,226,13],[225,14,226,14],[225,15,226,15],[193,35,193,39],[230,0,244,34],[169,0,183,34],[190,16,190,34],[191,16,191,34],[192,16,192,28],[4,16,4,34],[5,16,5,34],[6,16,6,28],[6,29,6,34],[7,21,8,21],[7,22,7,26],[7,27,8,27],[7,28,8,28],[7,29,7,33],[7,34,8,34],[126,16,126,34],[127,16,127,34],[128,16,128,28],[128,29,128,34],[129,21,130,21],[129,22,129,26],[129,27,130,27],[129,28,130,28],[129,29,129,33],[129,34,130,34],[129,35,129,39],[127,0,127,2],[127,3,127,5],[127,6,127,8],[127,9,130,9],[127,10,128,15],[128,0,130,0],[128,1,130,1],[128,2,130,2],[128,3,130,3],[128,4,130,4],[128,5,130,5],[192,29,192,34],[193,21,194,21],[193,22,193,26],[193,27,194,27],[193,28,194,28],[193,29,193,33],[193,34,194,34],[190,0,190,15],[191,0,191,2],[191,3,191,5],[191,6,191,8],[191,9,194,9],[191,10,192,15],[192,0,194,0],[192,1,194,1],[192,2,194,2],[192,3,194,3],[192,4,194,4],[192,5,194,5],[192,6,194,6],[192,7,194,7],[192,8,194,8],[193,10,193,15],[193,16,193,20],[166,9,167,9],[166,10,167,10],[166,11,167,11],[166,12,167,12],[166,13,167,13],[166,14,167,14],[166,15,167,15],[166,0,167,0],[166,1,167,1],[166,2,167,2],[166,3,167,3],[166,4,167,4],[166,5,167,5],[166,6,167,6],[166,7,167,7],[166,8,167,8]]}
[]
["Master Histoire Civilisation Patrimoine","version du 26 août 2022"]
["Semestre 7"]
[]
["MAQUETTE",null,null,null,null,null,null,null,null,null,null,null,null,null,null,null,"MCCC"]
["Blocs de connaissances et de compétences (BCC)",null,null,"Unités d'Enseignement (UE)",null,null,"Eléments constitutifs d'UE (ECUE)",null,null,"Indiquer si l'UE ou l'ECUE est\n obligatoire, optionnel ou facultatif\n(menu déroulant)","Volumes horaires prévisionnels (temps étudiants)",null,null,null,null,null,"Poids relatifs du contrôle continu (CC et des examens de fin de semestre (CT), Nature des épreuves, Rattrapage"]
["Intitulés","Crédits","Coefficients","Intitulés","Crédits","Coefficients","Intitulés","Crédits","Coefficients",null,null,null,null,null,null,null,"Session principale ou session 1",null,null,null,null,null,null,null,null,null,null,null,null,"Rattrapage ou session 2"]
[null,null,null,null,null,null,null,null,null,null,"Enseignements",null,null,null,null,null,"Nature des épreuves CC (cocher)",null,null,null,null,"CC\nCoeff. (%)","Nature des épreuves CT (cocher)",null,null,null,null,"CC\nCoeff. (%)","Total session = 100 %","Nature des épreuves de rattrapage (cocher)",null,null,null,null,"Modalité de prise en compte\n\nObligatoire ou Facultatif"]
[null,null,null,null,null,null,null,null,null,null,"CM","TD","TP","Stage-Choisir la durée ici","PROJET","dont enseignements en langue étrangère \n(nombre d'heures)","Ecrit","Pratique (TP)","Oral","Mémoire","Soutenance",null,"Ecrit","Pratique (TP)","Oral","Mémoire","Soutenance",null,null,"Ecrit","Pratique (TP)","Oral","Mémoire","Soutenance"]
[null,null,null,"UE1 : Outils et méthodes",9,1,null,null,null,"Obligatoire",null,null,null,null,null,null,null,null,null,null,null,null,null,null,null,null,null,null,{"$f":"V10+AB10","v":0},null,null,null,null,null,"Obligatoire"]
[null,null,null,null,null,null,"Outils numériques ",2,1,"Obligatoire",null,20,null,null,null,null,"X",null,null,null,null,1,null,null,null,null,null,null,{"$f":"V11+AB11","v":1},"X",null,null,null,null,"Obligatoire"]
[null,null,null,null,null,null,"Aide à la recherche de stage",1,1,"Obligatoire",null,8,null,null,null,null,null,null,"X",null,null,1,null,null,null,null,null,null,1,null,null,"X",null,null,"Obligatoire"]
[null,null,null,null,null,null,"Méthodologie du rapport ou du mémoire",1,1,"Obligatoire",null,4,null,null,null,null,"X",null,null,null,null,1,null,null,null,null,null,null,1,"X",null,null,null,null,"Obligatoire"]
[null,null,null,null,null,null,"Langue : anglais",3,1,"Obligatoire",null,20,null,null,null,null,null,null,"X",null,null,1,null,null,null,null,null,null,1,null,null,"X",null,null,"Obligatoire"]
[null,null,null,null,null,null,"Projet Professionnel Personnel",2,1,"Obligatoire",10,null,null,null,null,null,"X",null,"X",null,null,1,null,null,null,null,null,null,1,"X",null,null,null,null,"Obligatoire"]
[null,null,null,"UE2 : Concepts, théories et connaissances fondamentales",6,1,null,null,null,"Obligatoire",null,null,null,null,null,null,null,null,null,null,null,null,null,null,null,null,null,null,0,null,null,null,null,null,"Obligatoire"]
[null,null,null,null,null,null,"Histoire du concept de patrimoine",2,1,"Obligatoire",12,null,null,null,null,null,"X",null,null,null,null,1,null,null,null,null,null,null,1,"X",null,null,null,null,"Obligatoire"]
[null,null,null,null,null,null,"Connaissances juridiques appliquées au patrimoine",2,1,"Obligatoire",18,null,null,null,null,null,"X",null,null,null,null,1,null,null,null,null,null,null,1,"X",null,null,null,null,"Obligatoire"]
[null,null,null,null,null,null,"Histoire des musées et des institutions patrimoniales",2,1,"Obligatoire",12,null,null,null,null,null,"X",null,null,null,null,1,null,null,null,null,null,null,1,"X",null,null,null,null,"Obligatoire"]
[null,null,null,"UE3 : Diversité des patrimoines",6,1,null,null,null,"Obligatoire",null,null,null,null,null,null,null,null,null,null,null,null,null,null,null,null,null,null,0,null,null,null,null,null,"Obligatoire"]
[null,null,null,null,null,null,"Patrimoines traditionnels (bâti, industriel, religieux etc.)",2,1,"Obligatoire",24,12,null,null,null,null,"X",null,"X",null,null,1,null,null,null,null,null,null,1,"X",null,"X",null,null,"Obligatoire"]
[null,null,null,null,null,null,"Patrimoines naturels (vivants, géologique, paléontologique)",2,1,"Obligatoire",8,12,null,null,null,null,"X",null,null,null,null,1,null,null,null,null,null,null,1,"X",null,null,null,null,"Obligatoire"]
[null,null,null,null,null,null,"Nouveaux patrimoines (immatériel, colonial)",2,1,"Obligatoire",10,12,null,null,null,null,"X",null,"X",null,null,1,null,null,null,null,null,null,1,"X",null,"X",null,null,"Obligatoire"]
[null,null,null,"UE4 : Etablissements culturels et services patrimoniaux",3,1,null,null,null,"Obligatoire",null,null,null,null,null,null,null,null,null,null,null,null,null,null,null,null,null,null,0,null,null,null,null,null,"Obligatoire"]
[null,null,null,null,null,null,"Archives, musées, DRAC, cité design, memorial, Parc Naturel, association etc. (Les interventions feront prioritairement dans les structures)",3,1,"Obligatoire",30,null,null,null,null,null,"X",null,null,null,null,1,null,null,null,null,null,null,1,"X",null,null,null,null,"Obligatoire"]
[null,null,null,"UE5 : Compétences et connaissances professionnelles",6,1,null,null,null,"Obligatoire",null,null,null,null,null,null,null,null,null,null,null,null,null,null,null,null,null,null,0,null,null,null,null,null,"Obligatoire"]
[null,null,null,null,null,null,"Connaissances des publics (publics jeunesse, publics empêchés, etc.",2,1,"Obligatoire",12,null,null,null,null,null,"X",null,null,null,null,1,null,null,null,null,null,null,1,"X",null,null,null,null,"Obligatoire"]
[null,null,null,null,null,null,"Expologie et muséographie",2,1,"Obligatoire",12,12,null,null,null,null,"X",null,null,null,null,1,null,null,null,null,null,null,1,"X",null,null,null,null,"Obligatoire"]
[null,null,null,null,null,null,"Enjeux et outils de la médiation",2,1,"Obligatoire",12,null,null,null,null,null,"X",null,null,null,null,1,null,null,null,null,null,null,1,"X",null,null,null,null,"Obligatoire"]
[null,null,null,null,null,null,null,null,null,null,null,null,null,null,null,null,null,null,null,null,null,null,null,null,null,null,null,null,0,null,null,null,null,null,"Obligatoire"]
[null,null,null,null,null,null,null,null,null,null,null,null,null,null,null,null,null,null,null,null,null,null,null,null,null,null,null,null,0,null,null,null,null,null,"Obligatoire"]
[null,null,null,null,null,null,null,null,null,null,null,null,null,null,null,null,null,null,null,null,null,null,null,null,null,null,null,null,0,null,null,null,null,null,"Obligatoire"]
[null,null,null,null,null,null,null,null,null,null,null,null,null,null,null,null,null,null,null,null,null,null,null,null,null,null,null,null,0,null,null,null,null,null,"Obligatoire"]
[null,null,null,null,null,null,null,null,null,null,null,null,null,null,null,null,null,null,null,null,null,null,null,null,null,null,null,null,0,null,null,null,null,null,"Obligatoire"]
[null,null,null,null,null,null,null,null,null,null,null,null,null,null,null,null,null,null,null,null,null,null,null,null,null,null,null,null,0,null,null,null,null,null,"Obligatoire"]
[null,null,null,null,null,null,null,null,null,null,null,null,null,null,null,null,null,null,null,null,null,null,null,null,null,null,null,null,0,null,null,null,null,null,"Obligatoire"]
[null,null,null,null,null,null,null,null,null,null,null,null,null,null,null,null,null,null,null,null,null,null,null,null,null,null,null,null,0,null,null,null,null,null,"Obligatoire"]
[null,null,null,null,null,null,null,null,null,null,null,null,null,null,null,null,null,null,null,null,null,null,null,null,null,null,null,null,0,null,null,null,null,null,"Obligatoire"]
[null,null,null,null,null,null,null,null,null,null,null,null,null,null,null,null,null,null,null,null,null,null,null,null,null,null,null,null,0,null,null,null,null,null,"Obligatoire"]
["Total par étudiant",null,"-","-",30,"-","-",30,"-","-",{"$f":"SUM(K10:K39)","v":160},{"$f":"SUM(L10:L39)","v":100}]
[]
[]
[]
[]
["ZONE DE TEXTE / COMMENTAIRES : (ALT+ENTREE pour aller à la ligne)\n\n"]
[]
[]
[]
[]
[]
[]
[]
[]
[]
[]
[]
[]
[]
[]
[]
[]
[]
[]
["Semestre 8"]
[]
["MAQUETTE",null,null,null,null,null,null,null,null,null,null,null,null,null,null,null,"MCCC"]
["Blocs de connaissances et de compétences (BCC)",null,null,"Unités d'Enseignement (UE)",null,null,"Eléments constitutifs d'UE (ECUE)",null,null,"Indiquer si l'UE ou l'ECUE est\n obligatoire, optionnel ou facultatif\n(menu déroulant)","Volumes horaires prévisionnels (temps étudiants)",null,null,null,null,null,"Poids relatifs du contrôle continu (CC et des examens de fin de semestre (CT), Nature des épreuves, Rattrapage"]
["Intitulés","Crédits","Coefficients","Intitulés","Crédits","Coefficients","Intitulés","Crédits","Coefficients",null,null,null,null,null,null,null,"Session principale ou session 1",null,null,null,null,null,null,null,null,null,null,null,null,"Rattrapage ou session 2"]
[null,null,null,null,null,null,null,null,null,null,"Enseignements",null,null,null,null,null,"Nature des épreuves CC (cocher)",null,null,null,null,"CC\nCoeff. (%)","Nature des épreuves CT (cocher)",null,null,null,null,"CC\nCoeff. (%)","Total session = 100 %","Nature des épreuves de rattrapage (cocher)",null,null,null,null,"Modalité de prise en compte\n\nObligatoire ou Facultatif"]
[null,null,null,null,null,null,null,null,null,null,"CM","TD","TP","Stage-Choisir la durée ici","PROJET","dont enseignements en langue étrangère \n(nombre d'heures)","Ecrit","Pratique (TP)","Oral","Mémoire","Soutenance",null,"Ecrit","Pratique (TP)","Oral","Mémoire","Soutenance",null,null,"Ecrit","Pratique (TP)","Oral","Mémoire","Soutenance"]
[null,null,null,"UE1 Stage de Recherche",30,1,null,null,null,null,null,null,null,null,null,null,null,null,null,null,null,null,null,null,null,null,null,null,{"$f":"V71+AB71","v":0},null,null,null,null,null,"Obligatoire"]
[null,null,null,null,null,null,"Stage de 3 mois à 4 mois ou mémoire de recherche (France et étranger)",30,1,"Obligatoire",null,null,null,"3 à 4 mois",null,null,null,null,null,"X",null,1,null,null,null,null,null,null,{"$f":"V72+AB72","v":1},null,null,null,"X",null,"Obligatoire"]
[null,null,null,null,null,null,null,null,null,null,null,null,null,null,null,null,null,null,null,null,null,null,null,null,null,null,null,null,0,null,null,null,null,null,"Obligatoire"]
[null,null,null,null,null,null,null,null,null,null,null,null,null,null,null,null,null,null,null,null,null,null,null,null,null,null,null,null,0,null,null,null,null,null,"Obligatoire"]
[null,null,null,null,null,null,null,null,null,null,null,null,null,null,null,null,null,null,null,null,null,null,null,null,null,null,null,null,0,null,null,null,null,null,"Obligatoire"]
[null,null,null,null,null,null,null,null,null,null,null,null,null,null,null,null,null,null,null,null,null,null,null,null,null,null,null,null,0,null,null,null,null,null,"Obligatoire"]
[null,null,null,null,null,null,null,null,null,null,null,null,null,null,null,null,null,null,null,null,null,null,null,null,null,null,null,null,0,null,null,null,null,null,"Obligatoire"]
[null,null,null,null,null,null,null,null,null,null,null,null,null,null,null,null,null,null,null,null,null,null,null,null,null,null,null,null,0,null,null,null,null,null,"Obligatoire"]
[null,null,null,null,null,null,null,null,null,null,null,null,null,null,null,null,null,null,null,null,null,null,null,null,null,null,null,null,0,null,null,null,null,null,"Obligatoire"]
[null,null,null,null,null,null,null,null,null,null,null,null,null,null,null,null,null,null,null,null,null,null,null,null,null,null,null,null,0,null,null,null,null,null,"Obligatoire"]
[null,null,null,null,null,null,null,null,null,null,null,null,null,null,null,null,null,null,null,null,null,null,null,null,null,null,null,null,0,null,null,null,null,null,"Obligatoire"]
[null,null,null,null,null,null,null,null,null,null,null,null,null,null,null,null,null,null,null,null,null,null,null,null,null,null,null,null,0,null,null,null,null,null,"Obligatoire"]
[null,null,null,null,null,null,null,null,null,null,null,null,null,null,null,null,null,null,null,null,null,null,null,null,null,null,null,null,0,null,null,null,null,null,"Obligatoire"]
[null,null,null,null,null,null,null,null,null,null,null,null,null,null,null,null,null,null,null,null,null,null,null,null,null,null,null,null,0,null,null,null,null,null,"Obligatoire"]
[null,null,null,null,null,null,null,null,null,null,null,null,null,null,null,null,null,null,null,null,null,null,null,null,null,null,null,null,0,null,null,null,null,null,"Obligatoire"]
[null,null,null,null,null,null,null,null,null,null,null,null,null,null,null,null,null,null,null,null,null,null,null,null,null,null,null,null,0,null,null,null,null,null,"Obligatoire"]
[null,null,null,null,null,null,null,null,null,null,null,null,null,null,null,null,null,null,null,null,null,null,null,null,null,null,null,null,0,null,null,null,null,null,"Obligatoire"]
[null,null,null,null,null,null,null,null,null,null,null,null,null,null,null,null,null,null,null,null,null,null,null,null,null,null,null,null,0,null,null,null,null,null,"Obligatoire"]
[null,null,null,null,null,null,null,null,null,null,null,null,null,null,null,null,null,null,null,null,null,null,null,null,null,null,null,null,0,null,null,null,null,null,"Obligatoire"]
[null,null,null,null,null,null,null,null,null,null,null,null,null,null,null,null,null,null,null,null,null,null,null,null,null,null,null,null,0,null,null,null,null,null,"Obligatoire"]
[null,null,null,null,null,null,null,null,null,null,null,null,null,null,null,null,null,null,null,null,null,null,null,null,null,null,null,null,0,null,null,null,null,null,"Obligatoire"]
[null,null,null,null,null,null,null,null,null,null,null,null,null,null,null,null,null,null,null,null,null,null,null,null,null,null,null,null,0,null,null,null,null,null,"Obligatoire"]
[null,null,null,null,null,null,null,null,null,null,null,null,null,null,null,null,null,null,null,null,null,null,null,null,null,null,null,null,0,null,null,null,null,null,"Obligatoire"]
[null,null,null,null,null,null,null,null,null,null,null,null,null,null,null,null,null,null,null,null,null,null,null,null,null,null,null,null,0,null,null,null,null,null,"Obligatoire"]
[null,null,null,null,null,null,null,null,null,null,null,null,null,null,null,null,null,null,null,null,null,null,null,null,null,null,null,null,0,null,null,null,null,null,"Obligatoire"]
[null,null,null,null,null,null,null,null,null,null,null,null,null,null,null,null,null,null,null,null,null,null,null,null,null,null,null,null,0,null,null,null,null,null,"Obligatoire"]
[null,null,null,null,null,null,null,null,null,null,null,null,null,null,null,null,null,null,null,null,null,null,null,null,null,null,null,null,0,null,null,null,null,null,"Obligatoire"]
[null,null,null,null,null,null,null,null,null,null,null,null,null,null,null,null,null,null,null,null,null,null,null,null,null,null,null,null,0,null,null,null,null,null,"Obligatoire"]
[null,null,null,null,null,null,null,null,null,null,null,null,null,null,null,null,null,null,null,null,null,null,null,null,null,null,null,null,0,null,null,null,null,null,"Obligatoire"]
[null,null,null,null,null,null,null,null,null,null,null,null,null,null,null,null,null,null,null,null,null,null,null,null,null,null,null,null,0,null,null,null,null,null,"Obligatoire"]
["Total par étudiant",null,"-","-",null,"-","-",null,"-","-"]
[]
[]
[]
[]
["ZONE DE TEXTE / COMMENTAIRES : (ALT+ENTREE pour aller à la ligne)\n\n"]
[]
[]
[]
[]
[]
[]
[]
[]
[]
[]
[]
[]
[]
[]
[]
[]
[]
[]
["Semestre 9"]
[]
["MAQUETTE",null,null,null,null,null,null,null,null,null,null,null,null,null,null,null,"MCCC"]
["Blocs de connaissances et de compétences (BCC)",null,null,"Unités d'Enseignement (UE)",null,null,"Eléments constitutifs d'UE (ECUE)",null,null,"Indiquer si l'UE ou l'ECUE est\n obligatoire, optionnel ou facultatif\n(menu déroulant)","Volumes horaires prévisionnels (temps étudiants)",null,null,null,null,null,"Poids relatifs du contrôle continu (CC et des examens de fin de semestre (CT), Nature des épreuves, Rattrapage"]
["Intitulés","Crédits","Coefficients","Intitulés","Crédits","Coefficients","Intitulés","Crédits","Coefficients",null,null,null,null,null,null,null,"Session principale ou session 1",null,null,null,null,null,null,null,null,null,null,null,null,"Rattrapage ou session 2"]
[null,null,null,null,null,null,null,null,null,null,"Enseignements",null,null,null,null,null,"Nature des épreuves CC (cocher)",null,null,null,null,"CC\nCoeff. (%)","Nature des épreuves CT (cocher)",null,null,null,null,"CC\nCoeff. (%)","Total session = 100 %","Nature des épreuves de rattrapage (cocher)",null,null,null,null,"Modalité de prise en compte\n\nObligatoire ou Facultatif"]
[null,null,null,null,null,null,null,null,null,null,"CM","TD","TP","Stage-Choisir la durée ici","PROJET","dont enseignements en langue étrangère \n(nombre d'heures)","Ecrit","Pratique (TP)","Oral","Mémoire","Soutenance",null,"Ecrit","Pratique (TP)","Oral","Mémoire","Soutenance",null,null,"Ecrit","Pratique (TP)","Oral","Mémoire","Soutenance"]
[null,null,null,"UE1 : Outils et méthodes (tronc commun)",{"$f":"SUM(E133:H137)","v":8},1,null,{"$f":"SUM(H133:H137)","v":8},null,"Obligatoire",null,null,null,null,null,null,null,null,null,null,null,null,null,null,null,null,null,null,{"$f":"V132+AB132","v":0},null,null,null,null,null,"Obligatoire"]
[null,null,null,null,null,null,"SIG (QGIS ….)",3,1,"Obligatoire",null,28,null,null,null,null,"X",null,null,null,null,1,null,null,null,null,null,null,{"$f":"V133+AB133","v":1},"X",null,null,null,null,"Obligatoire"]
[null,null,null,null,null,null,"Aide à la recherche de stage",1,1,"Obligatoire",null,6,null,null,null,null,"X",null,null,null,null,1,null,null,null,null,null,null,{"$f":"V134+AB134","v":1},"X",null,null,null,null,"Obligatoire"]
[null,null,null,null,null,null,"Méthodologie du rapport ou du mémoire",1,1,"Obligatoire",null,6,null,null,null,null,"X",null,null,null,null,1,null,null,null,null,null,null,1,"X",null,null,null,null,"Obligatoire"]
[null,null,null,null,null,null,"Langue : Anglais",2,1,"Obligatoire",null,20,null,null,null,null,null,null,"X",null,null,1,null,null,null,null,null,null,1,null,null,"X",null,null,"Obligatoire"]
[null,null,null,null,null,null,"Projet Professionnel Personnel",1,1,"Obligatoire",10,null,null,null,null,null,null,null,"X",null,null,1,null,null,null,null,null,null,1,null,null,"X",null,null,"Obligatoire"]
[null,null,null,"UE2 : Patrimoines naturels et outils numériques",{"$f":"SUM(H140:H142)","v":9},1,null,{"$f":"SUM(H140:H142)","v":9},null,"Obligatoire",null,null,null,null,null,null,null,null,null,null,null,null,null,null,null,null,null,null,0,null,null,null,null,null,"Obligatoire"]
[null,null,null,"Option Patrimoines naturels",9,null,null,9,null,"Optionnel",null,null,null,null,null,null,null,null,null,null,null,null,null,null,null,null,null,null,0,null,null,null,null,null,"Obligatoire"]
[null,null,null,null,null,null,"Patrimoines des domaines fluviaux et lacustres",3,1,"Obligatoire",10,12,null,null,null,null,"X",null,null,null,null,1,null,null,null,null,null,null,1,"X",null,null,null,null,"Obligatoire"]
[null,null,null,null,null,null,"Patrimonialisation des zones humides",3,1,"Obligatoire",8,12,null,null,null,null,"X",null,null,null,null,1,null,null,null,null,null,null,{"$f":"V141+AB141","v":1},"X",null,null,null,null,"Obligatoire"]
[null,null,null,null,null,null,"Patrimoines géologiques et  paléontologiques ",3,1,"Obligatoire",8,20,null,null,null,null,"X",null,null,null,null,1,null,null,null,null,null,null,1,"X",null,null,null,null,"Obligatoire"]
[null,null,null,"Option Géomatique (approfondissement)",{"$f":"SUM(H144:H148)","v":9},1,null,{"$f":"SUM(H144:H148)","v":9},null,"Optionnel",null,null,null,null,null,null,null,null,null,null,null,null,null,null,null,null,null,null,0,null,null,null,null,null,"Obligatoire"]
[null,null,null,null,null,null,"Méthodes avancées en géomatique",3,1,"Obligatoire",null,20,null,null,null,null,"X",null,null,null,null,1,null,null,null,null,null,null,1,"X",null,null,null,null,"Obligatoire"]
[null,null,null,null,null,null,"Imageries aériennes (télédétection, Lidar, drones …)",2,1,"Obligatoire",null,18,null,null,null,null,"X",null,null,null,null,1,null,null,null,null,null,null,1,"X",null,null,null,null,"Obligatoire"]
[null,null,null,null,null,null,"3D (modélisation, Sfm, jeux vidéo et réalité virtuelle)",2,1,"Obligatoire",null,18,null,null,null,null,"X",null,null,null,null,1,null,null,null,null,null,null,1,"X",null,null,null,null,"Obligatoire"]
[null,null,null,null,null,null,"Cartographie et sémiologie",1,1,"Obligatoire",null,12,null,null,null,null,"X",null,null,null,null,1,null,null,null,null,null,null,1,"X",null,null,null,null,"Obligatoire"]
[null,null,null,null,null,null,"Données et règlementation (stockage, droits des données, licence ...)",1,1,"Obligatoire",4,null,null,null,null,null,"X",null,null,null,null,1,null,null,null,null,null,null,1,"X",null,null,null,null,"Obligatoire"]
[null,null,null,"UE3 : Diversité des patrimoines",{"$f":"SUM(H151:H153)","v":8},1,null,{"$f":"SUM(H151:H153)","v":8},1,"Obligatoire",null,null,null,null,null,null,null,null,null,null,null,null,null,null,null,null,null,null,0,null,null,null,null,null,"Obligatoire"]
[null,null,null,"Options approches croisées des patrimoines",{"$f":"SUM(H151:H153)","v":8},null,null,8,null,"Optionnel",null,null,null,null,null,null,null,null,null,null,null,null,null,null,null,null,null,null,0,null,null,null,null,null,"Obligatoire"]
[null,null,null,null,null,null,"Patrimoine géoarchéologique",3,1,"Obligatoire",12,18,null,null,null,null,"X",null,null,null,null,1,null,null,null,null,null,null,1,"X",null,null,null,null,"Obligatoire"]
[null,null,null,null,null,null,"Patrimoines bâtis et paysages culturels ",3,1,"Obligatoire",10,18,null,null,null,null,null,null,null,null,null,null,null,null,null,null,null,null,null,null,null,null,null,null,"Obligatoire"]
[null,null,null,null,null,null,"Cultural Landscapes et Anthropocène",2,1,"Obligatoire",14,null,null,null,null,null,"X",null,null,null,null,1,null,null,null,null,null,null,1,"X",null,null,null,null,"Obligatoire"]
[null,null,null,"Option Valorisation, diffusion et outils numériques",{"$f":"SUM(H155:H159)","v":8},null,null,{"$f":"SUM(H155:H159)","v":8},null,"Optionnel",null,null,null,null,null,null,null,null,null,null,null,null,null,null,null,null,null,null,0,null,null,null,null,null,"Obligatoire"]
[null,null,null,null,null,null,"PAO; DAO, Print",2,1,"Obligatoire",null,12,null,null,null,null,"X",null,null,null,null,1,null,null,null,null,null,null,1,"X",null,null,null,null,"Obligatoire"]
[null,null,null,null,null,null,"Communiquer sur le patrimoine (outils Web réseaux sociaux, vidéo, audios …)",2,1,"Obligatoire",null,11,null,null,null,null,"X",null,null,null,null,1,null,null,null,null,null,null,1,"X",null,null,null,null,"Obligatoire"]
[null,null,null,null,null,null,"Nouveaux outils interactifs et muséographie (vidéos, bornes, tablettes, réalité augmentée, application smartphone …)",2,1,"Obligatoire",null,24,null,null,null,null,"X",null,null,null,null,1,null,null,null,null,null,null,1,"X",null,null,null,null,"Obligatoire"]
[null,null,null,null,null,null,"Numériser le patrimoine",1,1,"Obligatoire",4,null,null,null,null,null,"X",null,null,null,null,1,null,null,null,null,null,null,1,"X",null,null,null,null,"Obligatoire"]
[null,null,null,null,null,null,"Fabriquer une enquête",1,1,"Obligatoire",null,6,null,null,null,null,"X",null,null,null,null,1,null,null,null,null,null,null,1,"X",null,null,null,null,"Obligatoire"]
[null,null,null,"UE4 : Etablissements culturels et services patrimoniaux",2,1,null,2,1,"Obligatoire",null,null,null,null,null,null,null,null,null,null,null,null,null,null,null,null,null,null,0,null,null,null,null,null,"Obligatoire"]
[null,null,null,null,null,null,"Les gestionnaires du patrimoine (Archives, musées, muséums, services de l'Etat, associations, fondations …)",2,1,"Obligatoire",9,6,null,null,null,null,"X",null,null,null,null,1,null,null,null,null,null,null,1,"X",null,null,null,null,"Obligatoire"]
[null,null,null,"UE5 : Compétences et connaissances professionnelles",3,1,null,3,null,"Obligatoire",null,null,null,null,null,null,null,null,null,null,null,null,null,null,null,null,null,null,0,null,null,null,null,null,"Obligatoire"]
[null,null,null,null,null,null,"Connaissances des publics",1,1,"Obligatoire",10,null,null,null,null,null,"X",null,"X",null,null,1,null,null,null,null,null,null,1,"X",null,"X",null,null,"Obligatoire"]
[null,null,null,null,null,null,"Expologie et muséographie",1,1,"Obligatoire",10,null,null,null,null,null,"X",null,"X",null,null,1,null,null,null,null,null,null,1,"X",null,"X",null,null,"Obligatoire"]
[null,null,null,null,null,null,"Médiations : enjeux et outils",1,1,"Obligatoire",10,null,null,null,null,null,"X",null,"X",null,null,1,null,null,null,null,null,null,1,"X",null,"X",null,null,"Obligatoire"]
[null,null,null,null,null,null,null,null,null,null,null,null,null,null,null,null,null,null,null,null,null,null,null,null,null,null,null,null,0,null,null,null,null,null,"Obligatoire"]
["Total par étudiant",null,"-","-",null,"-","-",null,"-","-",{"$f":"SUM(K132:K166)","v":119},{"$f":"SUM(L132:L165)","v":267}]
[]
[]
["ZONE DE TEXTE / COMMENTAIRES : (ALT+ENTREE pour aller à la ligne)\n\n"]
[]
[]
[]
[]
[]
[]
[]
[]
[]
[]
[]
[]
[]
[]
[]
[]
[]
[]
["Semestre 10"]
[]
["MAQUETTE",null,null,null,null,null,null,null,null,null,null,null,null,null,null,null,"MCCC"]
["Blocs de connaissances et de compétences (BCC)",null,null,"Unités d'Enseignement (UE)",null,null,"Eléments constitutifs d'UE (ECUE)",null,null,"Indiquer si l'UE ou l'ECUE est\n obligatoire, optionnel ou facultatif\n(menu déroulant)","Volumes horaires prévisionnels (temps étudiants)",null,null,null,null,null,"Poids relatifs du contrôle continu (CC et des examens de fin de semestre (CT), Nature des épreuves, Rattrapage"]
["Intitulés","Crédits","Coefficients","Intitulés","Crédits","Coefficients","Intitulés","Crédits","Coefficients",null,null,null,null,null,null,null,"Session principale ou session 1",null,null,null,null,null,null,null,null,null,null,null,null,"Rattrapage ou session 2"]
[null,null,null,null,null,null,null,null,null,null,"Enseignements",null,null,null,null,null,"Nature des épreuves CC (cocher)",null,null,null,null,"CC\nCoeff. (%)","Nature des épreuves CT (cocher)",null,null,null,null,"CC\nCoeff. (%)","Total session = 100 %","Nature des épreuves de rattrapage (cocher)",null,null,null,null,"Modalité de prise en compte\n\nObligatoire ou Facultatif"]
[null,null,null,null,null,null,null,null,null,null,"CM","TD","TP","Stage-Choisir la durée ici","PROJET","dont enseignements en langue étrangère \n(nombre d'heures)","Ecrit","Pratique (TP)","Oral","Mémoire","Soutenance",null,"Ecrit","Pratique (TP)","Oral","Mémoire","Soutenance",null,null,"Ecrit","Pratique (TP)","Oral","Mémoire","Soutenance"]
[null,null,null,"UE1 Stage professionnel ou stage recherche",30,1,null,null,null,"Obligatoire",null,null,null,null,null,null,null,null,null,null,null,null,null,null,null,null,null,null,{"$f":"V196+AB196","v":0},null,null,null,null,null,"Obligatoire"]
[null,null,null,"Stage de 4 mois à 6 mois  ou mémoire de recherche",30,1,null,null,null,"Obligatoire",null,null,null,"4 à 6 mois",null,null,null,null,null,"X","X",1,null,null,null,null,null,null,{"$f":"V197+AB197","v":1},null,null,null,null,null,"Obligatoire"]
[null,null,null,null,null,null,null,null,null,"Obligatoire",null,null,null,null,null,null,null,null,null,null,null,null,null,null,null,null,null,null,0,null,null,null,null,null,"Obligatoire"]
[null,null,null,null,null,null,null,null,null,"Obligatoire",null,null,null,null,null,null,null,null,null,null,null,null,null,null,null,null,null,null,0,null,null,null,null,null,"Obligatoire"]
[null,null,null,null,null,null,null,null,null,"Obligatoire",null,null,null,null,null,null,null,null,null,null,null,null,null,null,null,null,null,null,0,null,null,null,null,null,"Obligatoire"]
[null,null,null,null,null,null,null,null,null,"Obligatoire",null,null,null,null,null,null,null,null,null,null,null,null,null,null,null,null,null,null,0,null,null,null,null,null,"Obligatoire"]
[null,null,null,null,null,null,null,null,null,"Obligatoire",null,null,null,null,null,null,null,null,null,null,null,null,null,null,null,null,null,null,0,null,null,null,null,null,"Obligatoire"]
[null,null,null,null,null,null,null,null,null,"Obligatoire",null,null,null,null,null,null,null,null,null,null,null,null,null,null,null,null,null,null,0,null,null,null,null,null,"Obligatoire"]
[null,null,null,null,null,null,null,null,null,"Obligatoire",null,null,null,null,null,null,null,null,null,null,null,null,null,null,null,null,null,null,0,null,null,null,null,null,"Obligatoire"]
[null,null,null,null,null,null,null,null,null,"Obligatoire",null,null,null,null,null,null,null,null,null,null,null,null,null,null,null,null,null,null,0,null,null,null,null,null,"Obligatoire"]
[null,null,null,null,null,null,null,null,null,"Obligatoire",null,null,null,null,null,null,null,null,null,null,null,null,null,null,null,null,null,null,0,null,null,null,null,null,"Obligatoire"]
[null,null,null,null,null,null,null,null,null,"Obligatoire",null,null,null,null,null,null,null,null,null,null,null,null,null,null,null,null,null,null,0,null,null,null,null,null,"Obligatoire"]
[null,null,null,null,null,null,null,null,null,"Obligatoire",null,null,null,null,null,null,null,null,null,null,null,null,null,null,null,null,null,null,0,null,null,null,null,null,"Obligatoire"]
[null,null,null,null,null,null,null,null,null,"Obligatoire",null,null,null,null,null,null,null,null,null,null,null,null,null,null,null,null,null,null,0,null,null,null,null,null,"Obligatoire"]
[null,null,null,null,null,null,null,null,null,"Obligatoire",null,null,null,null,null,null,null,null,null,null,null,null,null,null,null,null,null,null,0,null,null,null,null,null,"Obligatoire"]
[null,null,null,null,null,null,null,null,null,"Obligatoire",null,null,null,null,null,null,null,null,null,null,null,null,null,null,null,null,null,null,0,null,null,null,null,null,"Obligatoire"]
[null,null,null,null,null,null,null,null,null,"Obligatoire",null,null,null,null,null,null,null,null,null,null,null,null,null,null,null,null,null,null,0,null,null,null,null,null,"Obligatoire"]
[null,null,null,null,null,null,null,null,null,"Obligatoire",null,null,null,null,null,null,null,null,null,null,null,null,null,null,null,null,null,null,0,null,null,null,null,null,"Obligatoire"]
[null,null,null,null,null,null,null,null,null,"Obligatoire",null,null,null,null,null,null,null,null,null,null,null,null,null,null,null,null,null,null,0,null,null,null,null,null,"Obligatoire"]
[null,null,null,null,null,null,null,null,null,"Obligatoire",null,null,null,null,null,null,null,null,null,null,null,null,null,null,null,null,null,null,0,null,null,null,null,null,"Obligatoire"]
[null,null,null,null,null,null,null,null,null,"Obligatoire",null,null,null,null,null,null,null,null,null,null,null,null,null,null,null,null,null,null,0,null,null,null,null,null,"Obligatoire"]
[null,null,null,null,null,null,null,null,null,"Obligatoire",null,null,null,null,null,null,null,null,null,null,null,null,null,null,null,null,null,null,0,null,null,null,null,null,"Obligatoire"]
[null,null,null,null,null,null,null,null,null,"Obligatoire",null,null,null,null,null,null,null,null,null,null,null,null,null,null,null,null,null,null,0,null,null,null,null,null,"Obligatoire"]
[null,null,null,null,null,null,null,null,null,"Obligatoire",null,null,null,null,null,null,null,null,null,null,null,null,null,null,null,null,null,null,0,null,null,null,null,null,"Obligatoire"]
[null,null,null,null,null,null,null,null,null,"Obligatoire",null,null,null,null,null,null,null,null,null,null,null,null,null,null,null,null,null,null,0,null,null,null,null,null,"Obligatoire"]
[null,null,null,null,null,null,null,null,null,"Obligatoire",null,null,null,null,null,null,null,null,null,null,null,null,null,null,null,null,null,null,0,null,null,null,null,null,"Obligatoire"]
[null,null,null,null,null,null,null,null,null,"Obligatoire",null,null,null,null,null,null,null,null,null,null,null,null,null,null,null,null,null,null,0,null,null,null,null,null,"Obligatoire"]
[null,null,null,null,null,null,null,null,null,"Obligatoire",null,null,null,null,null,null,null,null,null,null,null,null,null,null,null,null,null,null,0,null,null,null,null,null,"Obligatoire"]
[null,null,null,null,null,null,null,null,null,"Obligatoire",null,null,null,null,null,null,null,null,null,null,null,null,null,null,null,null,null,null,0,null,null,null,null,null,"Obligatoire"]
[null,null,null,null,null,null,null,null,null,"Obligatoire",null,null,null,null,null,null,null,null,null,null,null,null,null,null,null,null,null,null,0,null,null,null,null,null,"Obligatoire"]
["Total par étudiant",null,"-","-",null,"-","-",null,"-","-",null,null,null,"4 à 6 mois"]
[]
[]
[]
[]
["ZONE DE TEXTE / COMMENTAIRES : (ALT+ENTREE pour aller à la ligne)\n\n"]

{"sheet":"extraction base OF","index":1,"n_rows":88,"n_cols":14,"rows_kept":88,"cut":false,"hidden":true,"merged":[]}
["DIPLÔME","MENTION / INTITULE","PARCOURS","NUMERO  D'ACCREDITATION","CO-ACCREDITATION","NUMERO RNCP","DATE 1ère PRESENTATION  CFVU","MAQUETTE INITIALE","DATE  DERNIERE PRESENTATION  CFVU","MAQUETTE DERNIERE VERSION","FORMATION  INITIALE OU CONTINUE","CONTRAT  D'APPRENTISSAGE","CONTRAT PRO","STAGE"]
["master","arts","administration et gestion de la musique","20160566","Partenariat IAE (master MAE) et CNSMPD.","34834","08/04/2022","MAQUETTES 2022-2025\\ALL MASTER arts parcours administration et gestion de la musique.xlsm","-","non concerné","initiale","non","non","oui"]
["master","arts","création contemporaine et nouvelles technologies","20160566","-","34834","08/04/2022","MAQUETTES 2022-2025\\ALL MASTER arts parcours création contemporaine et nouvelles technologies.xlsm","-","non concerné","initiale","non","non","oui"]
["master","arts","création et recherche en arts plastiques","20160566","ENSASE","34834","08/04/2022","MAQUETTES 2022-2025\\ALL MASTER arts parcours création et recherche en arts plastiques.xlsm","-","non concerné","initiale","non","non","oui"]
["master","arts","édition d’art et livre d’artiste","20160566","-","34834","08/04/2022","MAQUETTES 2022-2025\\ALL MASTER arts parcours édition d’art livre d’artiste.xlsm","-","non concerné","initiale","non","non","oui"]
["master","arts","musique et musicologie","20160566","-","34834","08/04/2022","MAQUETTES 2022-2025\\ALL MASTER arts parcours musique et musicologie.xlsm","-","non concerné","initiale","non","non","oui"]
["master","arts","sciences de l’art","20160566","-","34834","08/04/2022","MAQUETTES 2022-2025\\ALL MASTER arts parcours sciences de l'art.xlsm","-","non concerné","initiale","non","non","oui"]
["master","design","métiers et industrie d'art","20160567","ENMSE, ESADSE","34439","08/04/2022","MAQUETTES 2022-2025\\ALL MASTER design parcours métiers et industries d'art.xlsx","-","non concerné","initiale","non","non","oui"]
["master","didactique des langues","FLE, ingénierie des formations en langues","20160396","-","34841","08/04/2022","MAQUETTES 2022-2025\\ALL MASTER didactique des langues parcours FLE ingénierie des formations en langue.xlsm","-","non concerné","initiale","non","non","oui"]
["master","didactique des langues","sociodidactique, valorisation de la diversité linguistique et culturelle","20160396","-","34841","08/04/2022","MAQUETTES 2022-2025\\ALL MASTER didactique des langues parcours sociodidactique, valorisation de la diversité linguistique et culturelle.xlsm","-","non concerné","initiale","non","non","oui"]
["master","langues, littératures et civilisations étrangères et régionales","cultures et interculturalité des médias dans les mondes espagnol et latino-américain","20160399","Lyon 2, ENS","31503","08/04/2022","MAQUETTES 2022-2025\\ALL MASTER LLCER parcours cultures et interculturalité des médias dans les mondes espagnol et latino-américain.xlsm","-","non concerné","initiale","non","non","oui"]
["master","langues, littératures et civilisations étrangères et régionales","études anglophones","20160399","Lyon 2, Lyon 3, ENS Lyon","31503","08/04/2022","MAQUETTES 2022-2025\\ALL MASTER langues littératures et civilisations étrangères et régionales parcours études anglophones.xlsm","-","non concerné","initiale","non","non","oui"]
["master","lettres","art dramatique","20141581","Partenariat avec l'Ecole de la Comédie et l'Ens de Lyon","24481","08/04/2022","MAQUETTES 2022-2025\\ALL MASTER lettres parcours art dramatique.xlsm","-","non concerné","initiale","non","non","non"]
["master","lettres","lettres modernes (dont M2 Lettres et études culturelles en ligne)","20160400","Lyon 2, Lyon 3, ENS Lyon","34268","08/04/2022","MAQUETTES 2022-2025\\ALL MASTER lettres parcours lettres modernes.xlsm","-","non concerné","initiale","non","non","oui"]
["master","lettres","métiers des institutions culturelles","20160400","Lyon 2, Lyon 3 et ENS","34268","08/04/2022","MAQUETTES 2022-2025\\ALL MASTER lettres parcours métiers des institutions culturelles.xlsm","-","non concerné","initiale","non","non","oui"]
["master","traduction et interprétation","métiers de la rédaction et de la traduction","20160404","-","34116","08/04/2022","MAQUETTES 2022-2025\\ALL MASTER traduction et interprétation parcours métiers de la rédaction et de la traduction.xlsm","-","non concerné","initiale","non","non","oui"]
["master","science politique","enjeux sociaux et politiques de santé","20160449","Lyon 2, ENS Lyon","31506","08/04/2022","MAQUETTES 2022-2025\\DEPT MASTER science politique parcours enjeux sociaux et politiques de santé.xlsm","-","non concerné","initiale, continue","non","non","oui"]
["master","science politique","gouvernance et politiques urbaines alternatives (Altervilles)","20160449","-","31506","08/04/2022","MAQUETTES 2022-2025\\DEPT MASTER science politique parcours gouvernance et politiques urbaines alternatives.xlsm","-","non concerné","initiale, continue","non","non","non"]
["master","science politique","politiques européennes - voisinages de l'UE (AlterEurope)","20160449","Lyon 2, ENS Lyon","31506","08/04/2022","MAQUETTES 2022-2025\\DEPT MASTER science politique parcours politiques européennes-voisinages de l'UE.xlsm","-","non concerné","initiale, continue","non","non","non"]
["master","droit des affaires","droit et affaires santé","20160407","-","34127","08/04/2022","MAQUETTES 2022-2025\\DROIT MASTER droit des affaires parcours droit et affaires santé.xlsm","-","non concerné","initiale, continue","oui","oui","oui"]
["master","droit des affaires","droit et entreprise, juriste d'affaires","20160407","-","34127","08/04/2022","MAQUETTES 2022-2025\\DROIT MASTER droit des affaires parcours droit et entreprise juriste d'affaires.xlsm","-","non concerné","initiale, continue","oui","oui","oui"]
["master","droit des affaires","ressources humaines de l'entreprise et droit social","20160407","-","34127","08/04/2022","MAQUETTES 2022-2025\\DROIT MASTER droit des affaires parcours ressources humaines de l'entreprise et droit social.xlsm","-","non concerné","initiale","oui","oui","oui"]
["master","droit public","acteurs publics","20160409","-","34084","08/04/2022","MAQUETTES 2022-2025\\DROIT MASTER droit public parcours acteurs publics.xlsm","-","non concerné","initiale","non","non","oui"]
["master","droit public","contrats publics","20160409","-","34084","08/04/2022","MAQUETTES 2022-2025\\DROIT MASTER droit public parcours contrats publics.xlsm","-","non concerné","initiale, continue","oui","oui","oui"]
["master","droit public","droits international européen et comparé (DIEC)","20160409","-","34084","08/04/2022","MAQUETTES 2022-2025\\DROIT MASTER droit public parcours droits international européens et comparé.xlsm","-","non concerné","initiale","non","non","oui"]
["master","justice, procès et procédures","civil","20160414","-","34098","08/04/2022","MAQUETTES 2022-2025\\DROIT MASTER justice procès procédures parcours civil.xlsm","-","non concerné","initiale","non","non","oui"]
["master","justice, procès et procédures","pénal","20160414","-","34098","08/04/2022","MAQUETTES 2022-2025\\DROIT MASTER justice procès procédure parcours pénal.xlsm","-","non concerné","initiale","non","non","oui"]
["master","analyse et politique économique","conseil en développement territorial","20160406","-","34424","08/04/2022","MAQUETTES 2022-2025\\EE MASTER analyse et politique économique parcours conseil en développement territorial.xlsm","-","non concerné","initiale, continue","oui","oui","oui"]
["master","analyse et politique économique","data science & management de l'Innovation","20160406","-","34424","08/04/2022","MAQUETTES 2022-2025\\EE MASTER analyse et politique économique parcours data science & management de l'Innovation.xlsm","-","non concerné","initiale, continue","non","non","oui"]
["master","analyse et politique économique","political engineering","20160406","-","34424","08/04/2022","MAQUETTES 2022-2025\\EE MASTER analyse et politique économique parours political engineering.xlsm","-","non concerné","initiale, continue","non","non","oui"]
["master","acoustique","bioacoustique",null,"ECL, INSA, ENTPE","31469","08/04/2022","MAQUETTES 2022-2025\\FST MASTER sciences du vivant parcours bioacoustique.xlsm","-","non concerné","initiale","non","non","oui"]
["master","chimie et sciences des matériaux","plasturgie","20160445","ENSM St-Etienne, EC Lyon, Lyon1, Institut Mines-Télécom","34112","08/04/2022","MAQUETTES 2022-2025\\FST MASTER chimie et sciences des matériaux parcours plasturgie.xlsm","-","non concerné","initiale, continue","oui","oui","oui"]
["master","électronique, énergie électrique, automatique (EEA CPI)","CPI","20160461",null,"34117","08/04/2022","MAQUETTES 2022-2025\\FST MASTER électronique énergie électrique automatique parcours CPI.xlsm","-","non concerné","initiale","non","non","oui"]
["master","informatique","cyber-physical social systems","20160459","Lyon 1, Ecole Centrale de Lyon,  ENS lyon, Lyon 2, Ecole des Mines de St-Etienne","34126","08/04/2022","MAQUETTES 2022-2025\\FST MASTER informatique parcours cyber-physical social systems.xlsm","-","non concerné","initiale","non","non","oui"]
["master","informatique","données et systèmes connectés","20160459","Lyon 1 , Ecole Centrale de Lyon , ENS lyon , Lyon 2 , Ecole des Mines de St-Etienne","34126","08/04/2022","MAQUETTES 2022-2025\\FST MASTER informatique parcours données et systèmes connectés.xlsm","-","non concerné","initiale, continue","oui","oui","oui"]
["master","informatique","machine learning data mining","20160459","Lyon 1 , Ecole Centrale de Lyon ,  ENS lyon , Lyon 2 , Ecole des Mines de St Etienne","34126","08/04/2022","MAQUETTES 2022-2025\\FST MASTER informatique parcours machine learning data mining.xlsm","-","non concerné","initiale","non","non","oui"]
["master","mathématiques appliquées, statistiques","mathématiques en action","20160466","ENSM St-Etienne, EC Lyon, Lyon1, ENS Lyon, Institut Mines-Telecom","34039","08/04/2022","MAQUETTES 2022-2025\\FST MASTER mathématiques appliquées, statistiques parcours mathématiques en action.xlsm","-","non concerné","initiale","non","non","oui"]
["master","OIVM - optique, image, vision, multimédia","advanced imaging and material appearance (AIMA)","20160571","ENSM St-Etienne, EC Lyon, Institut Mines-Telecom","23345","08/04/2022","MAQUETTES 2022-2025\\FST MASTER OIVM parcours AIMA.xlsm","-","non concerné","initiale, continue","non","non","oui"]
["master","OIVM - optique, image, vision, multimédia","computational colour and spectral imaging (COSI 2)","20160571","ENSM St-Etienne, EC Lyon, Institut Mines-Telecom","23345","08/04/2022","MAQUETTES 2022-2025\\FST MASTER OIVM parcours COSI 2.xlsm","-","non concerné","initiale","non","non","non"]
["master","OIVM - optique, image, vision, multimédia","photonics engineering","20160571","ENSM St-Etienne, EC Lyon, Institut Mines-Telecom","23345","08/04/2022","MAQUETTES 2022-2025\\FST MASTER OIVM parcours photonics engineering.xlsm","-","non concerné","initiale, continue","non","non","oui"]
["master","OIVM - optique, image, vision, multimédia","photonics for security, reliability and safety (PSRS)","20160571","ENSM St-Etienne, EC Lyon, Institut Mines-Telecom","23345","08/04/2022","MAQUETTES 2022-2025\\FST MASTER OIVM parcours PSRS.xlsm","-","non concerné","initiale","non","non","oui"]
["master","OIVM - optique, image, vision, multimédia","radiation and its Effects on micro electronics and photonics technologies (RADMEP)","20160571","ENSM St-Etienne, EC Lyon, Institut Mines-Telecom","23345","08/04/2022","MAQUETTES 2022-2025\\FST MASTER OIVM parcours RADMEP.xlsm","-","non concerné","initiale","non","non","non"]
["master","OIVM - optique, image, vision, multimédia","science in imaging and light in extended reality (IMLEX)","20160571","ENSM St-Etienne, EC Lyon, Institut Mines-Telecom","23345","08/04/2022","MAQUETTES 2022-2025\\FST MASTER OIVM parcours IMLEX.xlsm","-","non concerné","initiale","non","non","non"]
["master","sciences du vivant","bioacoustique","20160573","-","34822","08/04/2022","MAQUETTES 2022-2025\\FST MASTER sciences du vivant parcours bioacoustique.xlsm","-","non concerné","initiale","non","non","non"]
["master","sciences du vivant","écologie chimique","20160573","-","34822","08/04/2022","MAQUETTES 2022-2025\\FST MASTER sciences du vivant parcours écologie chimique.xlsm","-","non concerné","initiale","non","non","oui"]
["master","sciences du vivant","écologie et éthologie","20160573","-","34822","08/04/2022","MAQUETTES 2022-2025\\FST MASTER sciences du vivant parcours écologie et éthologie.xlsm","-","non concerné","initiale","non","non","oui"]
["master","sciences et techniques des activités physiques et sportives (STAPS) : entraînement et optimisation de la performance sportive (EOP)","évaluation et ingénierie de la performance sportive (EIPS)","20160493","Lyon 1","32169","08/04/2022","MAQUETTES 2022-2025\\FST MASTER STAPS EOPS parcours évaluation et ingénierie de la performance sportive (EIPS).xlsm","-","non concerné","initiale, continue","non","non","oui"]
["master","sciences et techniques des activités physiques et sportives (STAPS) : entraînement et optimisation de la performance sportive (EOP)","health performance science (HPS)","20160493","-","32169","08/04/2022","MAQUETTES 2022-2025\\FST MASTER STAPS EOPS parcours health and performance science.xlsm","-","non concerné","initiale","non","non","oui"]
["master","comptabilité-contrôle-audit","-","20160540","-","35991","08/04/2022","MAQUETTES 2022-2025\\IAE MASTER comptabilité contrôle audit.xlsm","-","non concerné","initiale, continue","oui","oui","oui"]
["master","contrôle de gestion et audit organisationnel","contrôle de gestion et systèmes d’information (CGSI)","20160541","-","35918","08/04/2022","MAQUETTES 2022-2025\\IAE MASTER contrôle de gestion et audit organisationnel parcours contrôle de gestion et systèmes d’information.xlsm","-","non concerné","initiale, continue","oui","oui","oui"]
["master","design","prospective design","20160567","ENSM St-Etienne, Institut Mines-Telecom, ESAD St-Etienne","34439","08/04/2022","MAQUETTES 2022-2025\\IAE MASTER design parcours prospective design.xlsm","-","non concerné","initiale, continue","non","non","oui"]
["master","entrepreneuriat et management de projets","entrepreneuriat",null,"Lyon 3","35922","08/04/2022","MAQUETTES 2022-2025\\IAE MASTER entrepreneuriat et management de projets parcours entrepreneuriat.xlsm","-","non concerné","initiale, continue","oui","oui","oui"]
["master","entrepreneuriat et management de projets","management de projets",null,"Lyon 3","35922","08/04/2022","MAQUETTES 2022-2025\\IAE MASTER entrepreneuriat et management de projets parcours management de projets.xlsm","-","non concerné","initiale, continue","oui","oui","non"]
["master","finance","conseils et ingénierie financière",null,"-","35913","08/04/2022","MAQUETTES 2022-2025\\IAE MASTER finance parcours conseils et ingénierie financière.xlsm","-","non concerné","initiale","non","non","oui"]
["master","information, communication","stratégies de communication, management et marketing digital","20160434","Lyon1, ENSSIB Lyon, Lyon2","31496","08/04/2022","MAQUETTES 2022-2025\\IAE MASTER information communication parcours stratégies de communication, management et marketing digital.xlsm","-","non concerné","initiale, continue","oui","oui","non"]
["master","management","management des organisations sanitaires et sociales (MOSS)","20160556","-","35917","08/04/2022","MAQUETTES 2022-2025\\IAE MASTER management parcours management des organisations sanitaires et sociales.xlsm","-","non concerné","initiale, continue","oui","oui","oui"]
["master","management","management du commerce et de la distribution","20160556","-","35917","08/04/2022","MAQUETTES 2022-2025\\IAE MASTER management parcours management du commerce et de la distribution.xlsm","-","non concerné","initiale, continue","oui","oui","oui"]
["master","management","management international","20160556","-","35917","08/04/2022","MAQUETTES 2022-2025\\IAE MASTER management parcours management international.xlsm","-","non concerné","initiale, continue","non","non","oui"]
["master","management et administration des entreprises","management général - double compétence","20160558","Lyon 3","35916","08/04/2022","MAQUETTES 2022-2025\\IAE MASTER management des administrations et des entreprises parcours management général - double compétence.xlsm","-","non concerné","initiale, continue","oui","oui","oui"]
["master","marketing, vente","marketing et stratégie d'innovation",null,"-","35907","08/04/2022","MAQUETTES 2022-2025\\IAE MASTER marketing vente parcours marketing et stratégie d'innovation.xlsm","-","non concerné","initiale, continue","non","non","oui"]
["master","monnaie, banque, finance, assurance","banque et finance","20160417","Lyon 2","34034","08/04/2022","MAQUETTES 2022-2025\\IAE MASTER monnaie banque finance assurance parcours banque finance.xlsm","-","non concerné","initiale, continue","oui","oui","oui"]
["master","monnaie, banque, finance, assurance","chargé d'affaires en banque : patrimoine et entreprises","20160417","Lyon 2 , ENS Lyon","34034","08/04/2022","MAQUETTES 2022-2025\\IAE MASTER monnaie banque finance assurance parcours chargé d'affaires en banque patrimoine et entreprises.xlsm","-","non concerné","initiale, continue","oui","oui","oui"]
["master","ingénierie de la santé","-","20160465","ENSM St-Etienne, EC Lyon, Lyon 1, Institut Mines-Telecom","34075","08/04/2022","MAQUETTES 2022-2025\\MEDECINE MASTER ingénierie de la santé.xlsm","-","non concerné","initiale, continue","oui","oui","oui"]
["master","ingénierie de la santé","bioingénierie en santé","20160465","ENSM St-Etienne, EC Lyon, Lyon 1, Institut Mines-Telecom","34075","08/04/2022","MAQUETTES 2022-2025\\MEDECINE MASTER ingénierie de la santé parcours bioingénierie en santé.xlsm","-","non concerné","initiale, continue","oui","oui","non"]
["master","ingénierie de la santé","ingénierie de la neuromotricité","20160465","ENSM St-Etienne, EC Lyon, Lyon 1, Institut Mines-Telecom","34075","08/04/2022","MAQUETTES 2022-2025\\MEDECINE MASTER ingénierie de la santé parcours ingénierie de la neuromotricité.xlsm","-","non concerné","initiale, continue","oui","oui","non"]
["master","ingénierie de la santé","ingénierie prévention environnement de la santé","20160465","ENSM St-Etienne, EC Lyon, Lyon 1, Institut Mines-Telecom","34075","08/04/2022","MAQUETTES 2022-2025\\MEDECINE MASTER ingénierie de la santé parcours ingénierie prévention environnement de la santé.xlsm","-","non concerné","initiale, continue","oui","oui","non"]
["master","géomatique","géographies numériques","20160429","Lyon 2, ENS Lyon, Lyon 3","34852","08/04/2022","MAQUETTES 2022-2025\\SHS MASTER géomatique parcours géographie numériques.xlsm","-","non concerné","initiale, continue","non","non","oui"]
["master","gestion de l’environnement","prévention et gestion des altérations environnementales","20160427","ENSM St-Etienne, Institut Mines Telecom,Lyon 2, Lyon 3, ENS","34092","08/04/2022","MAQUETTES 2022-2025\\SHS MASTER gestion de l'environnement parcours prévention et gestion des altérations environnementales.xlsm","-","non concerné","initiale, continue","non","non","oui"]
["master","histoire","métier de l’historienne et de l'historien","20160430","Lyon 2, Lyon 3, ENS Lyon","31457","08/04/2022","MAQUETTES 2022-2025\\SHS MASTER histoire parcours métiers de l'historienne et de l’historien.xlsm","-","non concerné","initiale, continue","non","non","oui"]
["master","histoire, civilisations, patrimoine","management et médiation des patrimoines","20160432","-","34096","08/04/2022","MAQUETTES 2022-2025\\SHS MASTER histoire civilisations patrimoine parcours management et médiation des patrimoines.xlsm","-","non concerné","initiale","non","non","oui"]
["master","intervention et développement social","politiques sociales et développement territorial","20160435","Lyon 2","34132","08/04/2022","MAQUETTES 2022-2025\\SHS MASTER intervention et développement sociale parcours politiques sociales et développement territorial.xlsm","-","non concerné","initiale, continue","non","non","oui"]
["master","intervention et développement social","politiques sociales et développement territorial (FC)","20160435","-","34132","08/04/2022","MAQUETTES 2022-2025\\SHS MASTER intervention et développement social parcours politiques sociales et développement territorial (FC).xlsm","-","non concerné","continue","non","non","non"]
["master","sciences de l’éducation et de la formation","conception et réalisation de dispositifs et de projets, secteur enfance/jeunesse","20160453","Lyon 2","31849","08/04/2022","MAQUETTES 2022-2025\\SHS MASTER sciences de l'éducation et de la formation parcours conception et réalisation de dispositifs et de projets secteur enfance jeunesse.xlsm","-","non concerné","initiale","non","non","oui"]
["master","sciences de l’éducation et de la formation","expertise et recherche en éducation","20160453","Lyon 2","31849","08/04/2022","MAQUETTES 2022-2025\\SHS MASTER sciences de l'éducation et de la formation parcours expertise et recherche en éducation.xlsm","-","non concerné","initiale, continue","non","non","oui"]
["master","sociologie","formes et outils de l’enquête en sciences sociales","20160455","Lyon 2, ENS Lyon","31499","08/04/2022","MAQUETTES 2022-2025\\SHS MASTER sociologie parcours formes et outils de l’enquête en sciences sociales.xlsm","-","non concerné","initiale, continue","non","non","oui"]
["master","langues étrangères appliquées","relations commerciales internationales","20160398","Lyon 2, Lyon 3","34101","08/04/20022","MAQUETTES 2022-2025\\ALL MASTER langues étrangères appliquées parcours relations commerciales internationales.xlsm","-","non concerné","initiale","non","non","oui"]
["master","management et administration des entreprises","études et recherches en management","20160558","Lyon 3","35916","20/05/2016","MAQUETTES INITIALES\\MI_IAE_MASTER_management et administration des entreprises_recherche en management.xls","23/06/2017","MAQUETTES MODIFIEES\\MM_IAE_MASTER_management et administration des entreprises_recherche en management_03.06.2017.xlsx","initiale","non","non","oui"]
["master","électronique, énergie électrique, automatique","traitement de l’information et instrumentation pour l’ingénieur","20160461","EC Lyon, Lyon 1","34117","10/06/2022","MAQUETTES 2022-2025\\IUTR MASTER électronique énergie électrique automatique T3I.xlsm","-","non concerné","initiale","non","non","oui"]
["master","électronique, énergie électrique, automatique","traitement de l’information et instrumentation pour l’ingénieur - alternance","20160461","EC Lyon, Lyon 1","34117","10/06/2022","MAQUETTES 2022-2025\\IUTR MASTER électronique énergie électrique automatique T3I alternance.xlsm","-","non concerné","continue","oui","oui","non"]
["master","génie industriel","gestion et ingénierie des systèmes industriels et de santé (GISIS)","20160570","ENI St-Etienne,ENSM St-Etienne, EC Lyon, Institut Mines-Telecom, SIGMA Clermont, Université Clermont-Auvergne","34113","10/06/2022","MAQUETTES 2022-2025\\IUTR MASTER génie industriel GISIS.xlsm","-","non concerné","initiale","non","non","oui"]
["master","génie industriel","gestion et ingénierie des systèmes industriels et de santé (GISIS) - alternance","20160570","ENI St-Etienne,ENSM St-Etienne, EC Lyon, Institut Mines-Telecom, SIGMA Clermont, Université Clermont-Auvergne","34113","10/06/2022","MAQUETTES 2022-2025\\IUTR MASTER génie industriel GISIS alternance.xlsm","-","non concerné","continue","oui","oui","non"]
["master","génie industriel","méthodes avancées de génie industriel pour l'industrie du futur (MAGIF)","20160570","UCA, ECI, ENMSE","34113","10/06/2022","MAQUETTES 2022-2025\\IUTR MASTER génie industriel MAGIF.xlsm","-","non concerné","initiale","non","non","oui"]
["master","biologie moléculaire et cellulaire","leading international vaccinology education (LIVE)","20160437","Lyon 1","34272","15/09/2017","MAQUETTES INITIALES\\MI_MEDECINE_MASTER_biologie moléculaire et cellulaire_live_15.09.2017.xlsx","-","non concerné","initiale","non","non","oui"]
["master","santé publique","conseiller en génétique et génomique",null,"ECL - Lyon 1 - VetAgro Sup","34291",null,"A venir","-","non concerné"]
["master","santé publique","Methods in drug developement and evaluation (MDDE) Prevention, Health Promotion, Global Health",null,"ECL - Lyon 1 - VetAgro Sup","34291",null,"A venir","-","non concerné"]
["master","histoire, civilisations, patrimoine","dynamics of cultural landscapes and heritage management (DYCLAM)","20160432","ENTPE Lyon, ENSSIB Lyon, Lyon 2","34096","04/12/2015","MAQUETTES INITIALES\\MI_SHS_MASTER_DYCLAM","21/06/2019","MAQUETTES MODIFIEES\\MM_SHS_MASTER_DYCLAM_21.06.2019","initiale","non","non","oui"]
["master","information, communication","design de communication : innovation et médiation numérique","20160434","Lyon1, ENSSIB Lyon, Lyon2, Lyon 3, ENS Lyon","31496","-","maquette indisponible","18/06/2021","MAQUETTES MODIFIEES\\MM_TSE_MASTER_information communication_design de communication_18.06.2021.pdf","initiale, continue","oui","oui","oui"]
["master","OIVM - optique, image, vision, multimédia","ITXR, imaging technologies for extended reality","20160571","ENSM St-Etienne, EC Lyon, Institut Mines-Telecom","23345","18/06/2021","MAQUETTES INITIALES\\MI_TSE__MASTER_OIVM_master Imaging Technologies for extented reality_18.06.2021.pdf","-","non concerné","initiale","non","non","oui"]

{"sheet":"liste automatisée mentions","index":2,"n_rows":42,"n_cols":4,"rows_kept":42,"cut":false,"hidden":true,"merged":[]}
["PERIODE  D'ACCREDITATION","DIPLÔME","MENTION / INTITULE","STATUT  DE LA FORMATION POUR LES IA  DE L'ANNE EN COURS"]
["2022-2025","master","acoustique","ouverture prévue"]
["2022-2025","master","analyse et politique économique","ouverture prévue"]
["2016-2025","master","arts","ouvert"]
["2016-2025","master","biologie moléculaire et cellulaire","ouvert"]
["2016-2025","master","chimie et sciences des matériaux","ouvert"]
["2016-2025","master","comptabilité-contrôle-audit","ouvert"]
["2022-2025","master","contrôle de gestion et audit organisationnel","ouverture prévue"]
["2022-2025","master","design","ouverture prévue"]
["2022-2025","master","didactique des langues","ouverture prévue"]
["2022-2025","master","droit des affaires","ouverture prévue"]
["2022-2025","master","droit public","ouverture prévue"]
["2022-2025","master","électronique, énergie électrique, automatique","ouverture prévue"]
["2016-2025","master","électronique, énergie électrique, automatique (EEA CPI)","ouvert"]
["2022-2025","master","entrepreneuriat et management de projets","ouverture prévue"]
["2022-2025","master","finance","ouverture prévue"]
["2022-2025","master","génie industriel","ouverture prévue"]
["2016-2025","master","géomatique","ouvert"]
["2016-2025","master","gestion de l’environnement","ouvert"]
["2022-2025","master","histoire","ouverture prévue"]
["2016-2025","master","histoire, civilisations, patrimoine","ouvert"]
["2022-2025","master","information, communication","ouverture prévue"]
["2016-2025","master","informatique","ouvert"]
["2016-2025","master","ingénierie de la santé","ouvert"]
["2016-2025","master","intervention et développement social","ouvert"]
["2022-2025","master","justice, procès et procédures","ouverture prévue"]
["2016-2025","master","langues étrangères appliquées","ouvert"]
["2022-2025","master","langues, littératures et civilisations étrangères et régionales","ouverture prévue"]
["2022-2025","master","lettres","ouverture prévue"]
["2022-2025","master","management","ouverture prévue"]
["2016-2025","master","management et administration des entreprises","ouvert"]
["2022-2025","master","marketing, vente","ouverture prévue"]
["2016-2025","master","mathématiques appliquées, statistiques","ouvert"]
["2016-2025","master","monnaie, banque, finance, assurance","ouvert"]
["2016-2025","master","OIVM - optique, image, vision, multimédia","ouvert"]
["2022-2025","master","santé publique","N-OF- création mention et parcours"]
["2022-2025","master","science politique","ouverture prévue"]
["2022-2025","master","sciences de l’éducation et de la formation","ouverture prévue"]
["2022-2025","master","sciences du vivant","ouverture prévue"]
["2016-2025","master","sciences et techniques des activités physiques et sportives (STAPS) : entraînement et optimisation de la performance sportive (EOP)","ouvert"]
["2016-2025","master","sociologie","ouvert"]
["2016-2025","master","traduction et interprétation","ouvert"]

{"sheet":"liste automatisée parcours","index":3,"n_rows":86,"n_cols":4,"rows_kept":86,"cut":false,"hidden":true,"merged":[]}
["PERIODE  D'ACCREDITATION","DIPLÔME","PARCOURS","STATUT  DE LA FORMATION POUR LES IA  DE L'ANNE EN COURS"]
["2016-2025","master","-","ouvert"]
["2022-2025","master","acteurs publics","ouverture prévue"]
["2016-2025","master","administration et gestion de la musique","ouvert"]
["2016-2025","master","advanced imaging and material appearance (AIMA)","ouvert"]
["2022-2025","master","art dramatique","ouverture prévue"]
["2016-2025","master","banque et finance","ouvert"]
["2022-2025","master","bioacoustique","ouverture prévue"]
["2022-2025","master","bioingénierie en santé","ouverture prévue"]
["2022-2025","master","chargé d'affaires en banque : patrimoine et entreprises","ouverture prévue"]
["2022-2025","master","civil","ouverture prévue"]
["2016-2025","master","computational colour and spectral imaging (COSI 2)","ouvert"]
["2022-2025","master","conception et réalisation de dispositifs et de projets, secteur enfance/jeunesse","ouverture prévue"]
["2022-2025","master","conseil en développement territorial","ouverture prévue"]
["2022-2025","master","conseiller en génétique et génomique","N-OF- création mention et parcours"]
["2022-2025","master","conseils et ingénierie financière","ouverture prévue"]
["2016-2025","master","contrats publics","ouvert"]
["2022-2025","master","contrôle de gestion et systèmes d’information (CGSI)","ouverture prévue"]
["2016-2025","master","CPI","ouvert"]
["2022-2025","master","création contemporaine et nouvelles technologies","ouverture prévue"]
["2022-2025","master","création et recherche en arts plastiques","ouverture prévue"]
["2022-2025","master","cultures et interculturalité des médias dans les mondes espagnol et latino-américain","ouverture prévue"]
["2016-2025","master","cyber-physical social systems","ouvert"]
["2022-2025","master","data science & management de l'Innovation","ouverture prévue"]
["2016-2025","master","design de communication : innovation et médiation numérique","ouvert"]
["2016-2025","master","données et systèmes connectés","ouvert"]
["2022-2025","master","droit et affaires santé","ouverture prévue"]
["2022-2025","master","droit et entreprise, juriste d'affaires","ouverture prévue"]
["2022-2025","master","droits international européen et comparé (DIEC)","ouverture prévue"]
["2016-2025","master","dynamics of cultural landscapes and heritage management (DYCLAM)","ouvert"]
["2022-2025","master","écologie chimique","ouverture prévue"]
["2022-2025","master","écologie et éthologie","ouverture prévue"]
["2016-2025","master","édition d’art et livre d’artiste","ouvert"]
["2022-2025","master","enjeux sociaux et politiques de santé","ouverture prévue"]
["2022-2025","master","entrepreneuriat","ouverture prévue"]
["2016-2025","master","études anglophones","ouvert"]
["2016-2025","master","études et recherches en management","ouvert"]
["2016-2025","master","évaluation et ingénierie de la performance sportive (EIPS)","ouvert"]
["2022-2025","master","expertise et recherche en éducation","ouverture prévue"]
["2022-2025","master","FLE, ingénierie des formations en langues","ouverture prévue"]
["2016-2025","master","formes et outils de l’enquête en sciences sociales","ouvert"]
["2016-2025","master","géographies numériques","ouvert"]
["2022-2025","master","gestion et ingénierie des systèmes industriels et de santé (GISIS)","ouverture prévue"]
["2022-2025","master","gestion et ingénierie des systèmes industriels et de santé (GISIS) - alternance","ouverture prévue"]
["2022-2025","master","gouvernance et politiques urbaines alternatives (Altervilles)","ouverture prévue"]
["2022-2025","master","health performance science (HPS)","ouverture prévue"]
["2016-2025","master","ingénierie de la neuromotricité","ouvert"]
["2022-2025","master","ingénierie prévention environnement de la santé","ouverture prévue"]
["2016-2025","master","ITXR, imaging technologies for extended reality","ouvert"]
["2016-2025","master","leading international vaccinology education (LIVE)","ouvert"]
["2016-2025","master","lettres modernes (dont M2 Lettres et études culturelles en ligne)","ouvert"]
["2016-2025","master","machine learning data mining","ouvert"]
["2022-2025","master","management de projets","ouverture prévue"]
["2022-2025","master","management des organisations sanitaires et sociales (MOSS)","ouverture prévue"]
["2016-2025","master","management du commerce et de la distribution","ouvert"]
["2022-2025","master","management et médiation des patrimoines","ouverture prévue"]
["2022-2025","master","management général - double compétence","ouverture prévue"]
["2016-2025","master","management international","ouvert"]
["2022-2025","master","marketing et stratégie d'innovation","ouverture prévue"]
["2016-2025","master","mathématiques en action","ouvert"]
["2022-2025","master","méthodes avancées de génie industriel pour l'industrie du futur (MAGIF)","ouverture prévue"]
["2022-2025","master","Methods in drug developement and evaluation (MDDE) Prevention, Health Promotion, Global Health","N-OF- création mention et parcours"]
["2022-2025","master","métier de l’historienne et de l'historien","ouverture prévue"]
["2016-2025","master","métiers de la rédaction et de la traduction","ouvert"]
["2022-2025","master","métiers des institutions culturelles","ouverture prévue"]
["2022-2025","master","métiers et industrie d'art","ouverture prévue"]
["2016-2025","master","musique et musicologie","ouvert"]
["2022-2025","master","pénal","ouverture prévue"]
["2022-2025","master","photonics engineering","ouverture prévue"]
["2016-2025","master","photonics for security, reliability and safety (PSRS)","ouvert"]
["2016-2025","master","plasturgie","ouvert"]
["2022-2025","master","political engineering","ouverture prévue"]
["2022-2025","master","politiques européennes - voisinages de l'UE (AlterEurope)","ouverture prévue"]
["2016-2025","master","politiques sociales et développement territorial","ouvert"]
["2022-2025","master","politiques sociales et développement territorial (FC)","ouverture prévue"]
["2016-2025","master","prévention et gestion des altérations environnementales","ouvert"]
["2016-2025","master","prospective design","ouvert"]
["2016-2025","master","radiation and its Effects on micro electronics and photonics technologies (RADMEP)","ouverture prévue"]
["2016-2025","master","relations commerciales internationales","ouvert"]
["2022-2025","master","ressources humaines de l'entreprise et droit social","ouverture prévue"]
["2016-2025","master","science in imaging and light in extended reality (IMLEX)","ouvert"]
["2016-2025","master","sciences de l’art","ouvert"]
["2022-2025","master","sociodidactique, valorisation de la diversité linguistique et culturelle","ouverture prévue"]
["2022-2025","master","stratégies de communication, management et marketing digital","ouverture prévue"]
["2022-2025","master","traitement de l’information et instrumentation pour l’ingénieur","ouverture prévue"]
["2022-2025","master","traitement de l’information et instrumentation pour l’ingénieur - alternance","ouverture prévue"]

{"sheet":"LISTES","index":4,"n_rows":12,"n_cols":11,"rows_kept":12,"cut":false,"hidden":true,"merged":[]}
["Choisir la composante dans le menu déroulant","choisir dans la liste","Stage-Choisir la durée ici","Choisir le semestre dans le menu déroulant","EN ATTENTE VOTE CFVU","initiale","oui",1,"STAGE- choisir la durée ici","X","Choisir dans la liste"]
["ALL","Obligatoire","stage (heures)","Semestre 1","VALIDEE PAR CFVU","continue","non",2,"STAGE en heures",null,"Facultatif "]
["DEPT","Option","stage (semaines)","Semestre 2","REJETEE PAR CFVU","initiale, continue",null,null,"STAGE en semaines",null,"Obligatoire"]
["ECOLE D'ECONOMIE","Facultatif","stage (mois)","Semestre 3",null,null,null,null,"STAGE en mois",null,"Non rattrapable"]
["DROIT",null,null,"Semestre 4"]
["FST",null,null,"Semestre 5"]
["IAE",null,null,"Semestre 6"]
["IUT ROANNE",null,null,"Semestre 7"]
["IUT ST-ETIENNE",null,null,"Semestre 8"]
["MEDECINE",null,null,"Semestre 9"]
["SHS",null,null,"Semestre 10"]
["TELECOM ST-ETIENNE"]